[Event "Early-Titled-Tuesday-Blitz-November-28-2023"]
[Site "Chess.com"]
[Date "2023.11.28"]
[Round "9"]
[White "Elbebiber"]
[Black "kai_nov"]
[Result "0-1"]
[WhiteElo "2113"]
[BlackElo "2237"]
[TimeControl "180+1"]
[EndTime "9:51:54 PST"]
[Termination "kai_nov won on time"]

1. d4 {[%clk 0:02:54.8]} 1... Nf6 {[%clk 0:02:58.1]} 2. Bg5 {[%clk 0:02:53.8]}
2... e6 {[%clk 0:02:57.3]} 3. e4 {[%clk 0:02:52.1]} 3... Be7 {[%clk 0:02:56.5]}
4. e5 {[%clk 0:02:41.6]} 4... Nd5 {[%clk 0:02:52.8]} 5. Bxe7 {[%clk 0:02:39.7]}
5... Nxe7 {[%clk 0:02:52.4]} 6. Nf3 {[%clk 0:02:37.8]} 6... O-O {[%clk
0:02:51.5]} 7. Bd3 {[%clk 0:02:36.4]} 7... d6 {[%clk 0:02:48.4]} 8. O-O {[%clk
0:02:29.4]} 8... dxe5 {[%clk 0:02:47.1]} 9. Nxe5 {[%clk 0:02:22]} 9... f5 {[%clk
0:02:31.8]} 10. c3 {[%clk 0:02:12.6]} 10... Nbc6 {[%clk 0:02:22.8]} 11. Re1
{[%clk 0:01:57.1]} 11... Nxe5 {[%clk 0:02:07.8]} 12. Rxe5 {[%clk 0:01:55.7]}
12... Ng6 {[%clk 0:02:07.8]} 13. Re1 {[%clk 0:01:48.2]} 13... Qf6 {[%clk
0:02:00.5]} 14. Nd2 {[%clk 0:01:37.5]} 14... Bd7 {[%clk 0:01:48]} 15. Nf3 {[%clk
0:01:31.1]} 15... Rae8 {[%clk 0:01:40.8]} 16. Bc4 {[%clk 0:01:25.5]} 16... Bc6
{[%clk 0:01:36.1]} 17. d5 {[%clk 0:01:08.3]} 17... exd5 {[%clk 0:01:08.7]} 18.
Bxd5+ {[%clk 0:01:07.8]} 18... Kh8 {[%clk 0:01:08.3]} 19. Bxc6 {[%clk
0:01:01.4]} 19... Qxc6 {[%clk 0:01:05.8]} 20. Qd4 {[%clk 0:00:39.8]} 20... Re4
{[%clk 0:00:55.2]} 21. Qxa7 {[%clk 0:00:31.3]} 21... Nf4 {[%clk 0:00:39.2]} 22.
Re3 {[%clk 0:00:13.9]} 22... Rxe3 {[%clk 0:00:18.7]} 23. fxe3 {[%clk 0:00:13.8]}
23... Nh3+ {[%clk 0:00:16.5]} 24. Kf1 {[%clk 0:00:11.1]} 24... f4 {[%clk
0:00:11.9]} 25. Qd4 {[%clk 0:00:08.4]} 25... fxe3 {[%clk 0:00:09.7]} 26. Qxe3
{[%clk 0:00:08]} 26... Nf4 {[%clk 0:00:08.6]} 27. Re1 {[%clk 0:00:06.2]} 27...
Nd5 {[%clk 0:00:08.5]} 28. Qe4 {[%clk 0:00:05.9]} 28... h6 {[%clk 0:00:06.5]}
29. h3 {[%clk 0:00:05.8]} 29... Qa6+ {[%clk 0:00:04.8]} 30. Kg1 {[%clk
0:00:05.4]} 30... Nf6 {[%clk 0:00:04.9]} 31. Qe2 {[%clk 0:00:04.6]} 31... Qxa2
{[%clk 0:00:04.7]} 32. Kh2 {[%clk 0:00:04]} 32... Qf7 {[%clk 0:00:04.5]} 33. Ne5
{[%clk 0:00:02.5]} 33... Qe8 {[%clk 0:00:03]} 34. Nf3 {[%clk 0:00:01.5]} 34...
Qc6 {[%clk 0:00:02.2]} 0-1

[Event "Early-Titled-Tuesday-Blitz-November-28-2023"]
[Site "Chess.com"]
[Date "2023.11.28"]
[Round "9"]
[White "RodokininEV"]
[Black "MightyGMpretender"]
[Result "1-0"]
[WhiteElo "2634"]
[BlackElo "2805"]
[TimeControl "180+1"]
[EndTime "9:51:57 PST"]
[Termination "RodokininEV won on time"]

1. d4 {[%clk 0:03:00.9]} 1... Nf6 {[%clk 0:02:58.9]} 2. c4 {[%clk 0:03:01.2]}
2... e6 {[%clk 0:02:59.2]} 3. Nf3 {[%clk 0:03:01.5]} 3... d5 {[%clk 0:02:59]} 4.
Nc3 {[%clk 0:03:00.6]} 4... Ne4 {[%clk 0:02:56.3]} 5. Qc2 {[%clk 0:02:57.6]}
5... Nxc3 {[%clk 0:02:54.2]} 6. Qxc3 {[%clk 0:02:57.4]} 6... a5 {[%clk
0:02:53.6]} 7. Qc2 {[%clk 0:02:55.6]} 7... Nc6 {[%clk 0:02:36]} 8. e3 {[%clk
0:02:53.3]} 8... Bb4+ {[%clk 0:02:35.6]} 9. Bd2 {[%clk 0:02:52.8]} 9... Bxd2+
{[%clk 0:02:28.4]} 10. Qxd2 {[%clk 0:02:51.1]} 10... O-O {[%clk 0:02:27.7]} 11.
Rc1 {[%clk 0:02:49.5]} 11... Qe7 {[%clk 0:02:20.1]} 12. Be2 {[%clk 0:02:48.7]}
12... dxc4 {[%clk 0:02:19.9]} 13. Bxc4 {[%clk 0:02:49.6]} 13... e5 {[%clk
0:02:18.8]} 14. dxe5 {[%clk 0:02:48.4]} 14... Nxe5 {[%clk 0:02:18.8]} 15. Nxe5
{[%clk 0:02:48.5]} 15... Qxe5 {[%clk 0:02:19.7]} 16. O-O {[%clk 0:02:44.2]}
16... c6 {[%clk 0:02:16.8]} 17. Rfd1 {[%clk 0:02:42.7]} 17... Bg4 {[%clk
0:02:08.9]} 18. Be2 {[%clk 0:02:42.7]} 18... Be6 {[%clk 0:02:04.4]} 19. b3
{[%clk 0:02:35.4]} 19... a4 {[%clk 0:01:57.9]} 20. Qb4 {[%clk 0:02:27.7]} 20...
Qb2 {[%clk 0:01:42.9]} 21. Bc4 {[%clk 0:02:18.6]} 21... Bxc4 {[%clk 0:00:56.8]}
22. Rxc4 {[%clk 0:02:06.5]} 22... axb3 {[%clk 0:00:56]} 23. axb3 {[%clk
0:02:00.6]} 23... Ra1 {[%clk 0:00:54.4]} 24. Qe1 {[%clk 0:01:38.2]} 24... Qxb3
{[%clk 0:00:45.4]} 25. Rxa1 {[%clk 0:01:32.2]} 25... Qxc4 {[%clk 0:00:45.2]} 26.
Rc1 {[%clk 0:01:30.9]} 26... Qe6 {[%clk 0:00:37.5]} 27. Qb4 {[%clk 0:01:28.3]}
27... b5 {[%clk 0:00:34.5]} 28. Rd1 {[%clk 0:01:24.8]} 28... g6 {[%clk
0:00:32.8]} 29. h4 {[%clk 0:01:24.3]} 29... Rc8 {[%clk 0:00:24]} 30. Rd6 {[%clk
0:01:14]} 30... Qe5 {[%clk 0:00:20.5]} 31. Rd7 {[%clk 0:01:07.9]} 31... Qa1+
{[%clk 0:00:12.5]} 32. Kh2 {[%clk 0:01:06.3]} 32... Qe5+ {[%clk 0:00:13.1]} 33.
Kg1 {[%clk 0:01:05.7]} 33... Qf5 {[%clk 0:00:10.7]} 34. Qe7 {[%clk 0:00:56.5]}
34... Qe6 {[%clk 0:00:07.4]} 35. Rd8+ {[%clk 0:00:38.2]} 35... Rxd8 {[%clk
0:00:07.2]} 36. Qxd8+ {[%clk 0:00:39.1]} 36... Kg7 {[%clk 0:00:07.9]} 37. Qd4+
{[%clk 0:00:37.9]} 37... Qf6 {[%clk 0:00:07.8]} 38. Qc5 {[%clk 0:00:36.4]} 38...
h5 {[%clk 0:00:07.9]} 39. g3 {[%clk 0:00:35.8]} 39... Qa1+ {[%clk 0:00:06.9]}
40. Kg2 {[%clk 0:00:35.7]} 40... Qf6 {[%clk 0:00:07.8]} 41. Kg1 {[%clk
0:00:35.2]} 41... Qe6 {[%clk 0:00:08.2]} 42. Qd4+ {[%clk 0:00:27.5]} 42... Kg8
{[%clk 0:00:08.2]} 43. Qc5 {[%clk 0:00:26.6]} 43... Qd5 {[%clk 0:00:07.2]} 44.
Qe7 {[%clk 0:00:21.5]} 44... Qd1+ {[%clk 0:00:04.1]} 45. Kg2 {[%clk 0:00:21]}
45... Qd5+ {[%clk 0:00:04.5]} 46. e4 {[%clk 0:00:20.6]} 46... Kg7 {[%clk
0:00:05.4]} 47. exd5 {[%clk 0:00:20.8]} 1-0

[Event "Early-Titled-Tuesday-Blitz-November-28-2023"]
[Site "Chess.com"]
[Date "2023.11.28"]
[Round "9"]
[White "Meri-Arabidze"]
[Black "DawidCzerw"]
[Result "1-0"]
[WhiteElo "2696"]
[BlackElo "2538"]
[TimeControl "180+1"]
[EndTime "9:51:59 PST"]
[Termination "Meri-Arabidze won on time"]

1. Nf3 {[%clk 0:02:56.7]} 1... c5 {[%clk 0:02:57.2]} 2. b3 {[%clk 0:02:56.2]}
2... g6 {[%clk 0:02:55]} 3. Bb2 {[%clk 0:02:56.2]} 3... Nf6 {[%clk 0:02:55.3]}
4. g3 {[%clk 0:02:52.5]} 4... Bg7 {[%clk 0:02:54.8]} 5. Bg2 {[%clk 0:02:53]}
5... O-O {[%clk 0:02:55.2]} 6. O-O {[%clk 0:02:53.2]} 6... Nc6 {[%clk
0:02:55.7]} 7. c4 {[%clk 0:02:53.3]} 7... b6 {[%clk 0:02:48.3]} 8. d4 {[%clk
0:02:52.9]} 8... cxd4 {[%clk 0:02:48.7]} 9. Nxd4 {[%clk 0:02:53]} 9... Bb7
{[%clk 0:02:49.3]} 10. e3 {[%clk 0:02:45.4]} 10... Rc8 {[%clk 0:02:48]} 11. Nc3
{[%clk 0:02:42.8]} 11... d6 {[%clk 0:02:44.3]} 12. Rc1 {[%clk 0:02:38.3]} 12...
Ba8 {[%clk 0:02:37.3]} 13. Nde2 {[%clk 0:02:37.9]} 13... Ne5 {[%clk 0:02:32.7]}
14. e4 {[%clk 0:02:38.1]} 14... h5 {[%clk 0:02:30.3]} 15. h3 {[%clk 0:02:35.1]}
15... h4 {[%clk 0:02:24.3]} 16. g4 {[%clk 0:02:35.2]} 16... g5 {[%clk
0:02:23.5]} 17. f4 {[%clk 0:02:27.2]} 17... gxf4 {[%clk 0:02:23.1]} 18. Nxf4
{[%clk 0:02:28]} 18... Ng6 {[%clk 0:02:20.3]} 19. Nh5 {[%clk 0:02:07.1]} 19...
Nxh5 {[%clk 0:02:11.7]} 20. gxh5 {[%clk 0:02:08]} 20... Ne5 {[%clk 0:02:07.5]}
21. Rc2 {[%clk 0:01:52.1]} 21... e6 {[%clk 0:02:05.9]} 22. Kh1 {[%clk
0:01:39.7]} 22... Kh8 {[%clk 0:02:03]} 23. Nb5 {[%clk 0:01:39]} 23... Qg5 {[%clk
0:01:47.1]} 24. Nxd6 {[%clk 0:01:31.7]} 24... Rcd8 {[%clk 0:01:39.3]} 25. Rd2
{[%clk 0:01:31.3]} 25... Rd7 {[%clk 0:01:27.6]} 26. b4 {[%clk 0:01:18]} 26... f6
{[%clk 0:01:15.6]} 27. c5 {[%clk 0:01:14.5]} 27... bxc5 {[%clk 0:01:15]} 28.
bxc5 {[%clk 0:01:15.4]} 28... Bh6 {[%clk 0:01:11.5]} 29. Rdf2 {[%clk 0:01:07.4]}
29... Rg7 {[%clk 0:01:09.6]} 30. Bc1 {[%clk 0:01:00.5]} 30... Qxc1 {[%clk
0:00:53.4]} 31. Qxc1 {[%clk 0:01:00.5]} 31... Bxc1 {[%clk 0:00:53.9]} 32. Rxc1
{[%clk 0:01:01.4]} 32... Nd3 {[%clk 0:00:53.2]} 33. Rfc2 {[%clk 0:00:56.4]}
33... Nxc1 {[%clk 0:00:52.1]} 34. Rxc1 {[%clk 0:00:57.3]} 34... Rfg8 {[%clk
0:00:43.2]} 35. Rc2 {[%clk 0:00:54.6]} 35... Bc6 {[%clk 0:00:33.3]} 36. Kh2
{[%clk 0:00:54.1]} 36... f5 {[%clk 0:00:33]} 37. Bf3 {[%clk 0:00:43]} 37... Rg3
{[%clk 0:00:28.8]} 38. Nf7+ {[%clk 0:00:37.7]} 38... Kh7 {[%clk 0:00:25.5]} 39.
Ne5 {[%clk 0:00:38.4]} 39... fxe4 {[%clk 0:00:13.4]} 40. Bg4 {[%clk 0:00:36]}
40... Bd5 {[%clk 0:00:07.8]} 41. c6 {[%clk 0:00:36.5]} 41... Rc8 {[%clk
0:00:04.4]} 42. c7 {[%clk 0:00:36.9]} 42... Ra3 {[%clk 0:00:03.7]} 43. Rc5
{[%clk 0:00:24.2]} 43... Rxa2+ {[%clk 0:00:03.3]} 44. Kg1 {[%clk 0:00:24.9]}
44... e3 {[%clk 0:00:02.5]} 45. Rxd5 {[%clk 0:00:21.9]} 1-0

[Event "Early-Titled-Tuesday-Blitz-November-28-2023"]
[Site "Chess.com"]
[Date "2023.11.28"]
[Round "9"]
[White "KNVB"]
[Black "DeArron_Fox"]
[Result "1-0"]
[WhiteElo "2705"]
[BlackElo "2470"]
[TimeControl "180+1"]
[EndTime "9:51:59 PST"]
[Termination "KNVB won on time"]

1. e4 {[%clk 0:02:59]} 1... c5 {[%clk 0:02:07.5]} 2. h4 {[%clk 0:02:32.8]} 2...
Nc6 {[%clk 0:02:00.9]} 3. Nc3 {[%clk 0:02:30.2]} 3... e6 {[%clk 0:01:57.5]} 4.
h5 {[%clk 0:02:28.3]} 4... d5 {[%clk 0:01:55.5]} 5. Bb5 {[%clk 0:02:27.9]} 5...
h6 {[%clk 0:01:45.4]} 6. d3 {[%clk 0:02:26.9]} 6... Bd6 {[%clk 0:01:42.8]} 7.
exd5 {[%clk 0:02:17.3]} 7... exd5 {[%clk 0:01:43.7]} 8. Nxd5 {[%clk 0:02:18.1]}
8... Be6 {[%clk 0:01:41.9]} 9. Bxc6+ {[%clk 0:01:32.5]} 9... bxc6 {[%clk
0:01:42.8]} 10. Nf4 {[%clk 0:01:33.2]} 10... Bxf4 {[%clk 0:01:30.5]} 11. Bxf4
{[%clk 0:01:34.1]} 11... Nf6 {[%clk 0:01:30.8]} 12. b3 {[%clk 0:01:24.1]} 12...
O-O {[%clk 0:01:28.6]} 13. Ne2 {[%clk 0:00:50.3]} 13... Re8 {[%clk 0:01:24.7]}
14. Qd2 {[%clk 0:00:29]} 14... Bg4 {[%clk 0:00:27.3]} 15. f3 {[%clk 0:00:28.7]}
15... Bxh5 {[%clk 0:00:26.7]} 16. Kf2 {[%clk 0:00:23.3]} 16... Bg6 {[%clk
0:00:17.9]} 17. Rae1 {[%clk 0:00:16.2]} 17... Nd5 {[%clk 0:00:08.8]} 18. Nc3
{[%clk 0:00:07.1]} 18... Qf6 {[%clk 0:00:06.5]} 19. Nxd5 {[%clk 0:00:03.4]}
19... cxd5 {[%clk 0:00:07.4]} 20. Rxe8+ {[%clk 0:00:01.8]} 20... Rxe8 {[%clk
0:00:08.3]} 21. Re1 {[%clk 0:00:01.3]} 21... Qd4+ {[%clk 0:00:03.9]} 22. Be3
{[%clk 0:00:01.6]} 22... Qh4+ {[%clk 0:00:03.8]} 23. Kf1 {[%clk 0:00:01.7]}
23... c4 {[%clk 0:00:03.3]} 24. dxc4 {[%clk 0:00:01.8]} 24... dxc4 {[%clk
0:00:04.2]} 25. Bf2 {[%clk 0:00:01.9]} 25... Qh1+ {[%clk 0:00:03.7]} 26. Bg1
{[%clk 0:00:02.4]} 26... Rxe1+ {[%clk 0:00:02.4]} 27. Qxe1 {[%clk 0:00:03]}
27... Bxc2 {[%clk 0:00:01.9]} 28. bxc4 {[%clk 0:00:03.1]} 28... Bd3+ {[%clk
0:00:02]} 29. Kf2 {[%clk 0:00:03.8]} 29... Bxc4 {[%clk 0:00:02.5]} 30. Qe8+
{[%clk 0:00:04.2]} 30... Kh7 {[%clk 0:00:02.6]} 31. Qe4+ {[%clk 0:00:05.1]}
31... f5 {[%clk 0:00:01.8]} 32. Qxc4 {[%clk 0:00:05.1]} 32... Qh5 {[%clk
0:00:02.4]} 33. Qd3 {[%clk 0:00:04.2]} 33... Qg6 {[%clk 0:00:02.4]} 34. Kf1
{[%clk 0:00:03.7]} 34... Qe6 {[%clk 0:00:02.3]} 35. a3 {[%clk 0:00:03.5]} 35...
g6 {[%clk 0:00:01.6]} 36. Bxa7 {[%clk 0:00:03.1]} 36... h5 {[%clk 0:00:01.8]}
37. Be3 {[%clk 0:00:03.3]} 37... Qc6 {[%clk 0:00:01.7]} 38. Bd2 {[%clk
0:00:03.5]} 38... Qa4 {[%clk 0:00:01.9]} 39. Qe3 {[%clk 0:00:03.7]} 39... Qd1+
{[%clk 0:00:01.7]} 40. Kf2 {[%clk 0:00:04.1]} 40... Qb1 {[%clk 0:00:02.2]} 41.
Qh6+ {[%clk 0:00:04.3]} 41... Kg8 {[%clk 0:00:02.5]} 42. Qxg6+ {[%clk
0:00:05.2]} 42... Kf8 {[%clk 0:00:03.4]} 43. Bb4+ {[%clk 0:00:05.5]} 1-0

[Event "Early-Titled-Tuesday-Blitz-November-28-2023"]
[Site "Chess.com"]
[Date "2023.11.28"]
[Round "9"]
[White "Good_Knight_Kiss"]
[Black "BarloNadera"]
[Result "0-1"]
[WhiteElo "2330"]
[BlackElo "2176"]
[TimeControl "180+1"]
[EndTime "9:52:00 PST"]
[Termination "BarloNadera won on time"]

1. e4 {[%clk 0:03:00.9]} 1... c6 {[%clk 0:02:54.3]} 2. d4 {[%clk 0:03:00.2]}
2... d5 {[%clk 0:02:52.8]} 3. Nc3 {[%clk 0:02:59.7]} 3... dxe4 {[%clk 0:02:52]}
4. Nxe4 {[%clk 0:02:59.9]} 4... Bf5 {[%clk 0:02:52]} 5. Ng3 {[%clk 0:02:59.5]}
5... Bg6 {[%clk 0:02:51.7]} 6. h4 {[%clk 0:02:59.9]} 6... h6 {[%clk 0:02:50.9]}
7. Nf3 {[%clk 0:02:57.9]} 7... Nd7 {[%clk 0:02:49.7]} 8. h5 {[%clk 0:02:57.7]}
8... Bh7 {[%clk 0:02:49.7]} 9. Bd3 {[%clk 0:02:58.4]} 9... Bxd3 {[%clk
0:02:49.3]} 10. Qxd3 {[%clk 0:02:59.3]} 10... e6 {[%clk 0:02:49.3]} 11. Bd2
{[%clk 0:02:58.9]} 11... Ngf6 {[%clk 0:02:46.8]} 12. O-O-O {[%clk 0:02:58.5]}
12... Bd6 {[%clk 0:02:46.6]} 13. Ne4 {[%clk 0:02:54.4]} 13... Nxe4 {[%clk
0:02:45.8]} 14. Qxe4 {[%clk 0:02:55.3]} 14... Nf6 {[%clk 0:02:45.3]} 15. Qe2
{[%clk 0:02:55.4]} 15... Qc7 {[%clk 0:02:44.7]} 16. Kb1 {[%clk 0:02:55.3]} 16...
O-O-O {[%clk 0:02:44.3]} 17. c4 {[%clk 0:02:55]} 17... c5 {[%clk 0:02:43.4]} 18.
Bc3 {[%clk 0:02:52.2]} 18... cxd4 {[%clk 0:02:42.5]} 19. Bxd4 {[%clk 0:02:45.6]}
19... a6 {[%clk 0:02:37.6]} 20. Ne5 {[%clk 0:02:42.8]} 20... Bxe5 {[%clk
0:02:05.1]} 21. Bxe5 {[%clk 0:02:42.2]} 21... Qc6 {[%clk 0:02:03.5]} 22. f4
{[%clk 0:02:31]} 22... Rxd1+ {[%clk 0:01:59.4]} 23. Rxd1 {[%clk 0:02:30.5]}
23... Rd8 {[%clk 0:01:58.7]} 24. Rxd8+ {[%clk 0:02:24.1]} 24... Kxd8 {[%clk
0:01:58.2]} 25. a3 {[%clk 0:02:00.5]} 25... Ke7 {[%clk 0:01:52]} 26. g4 {[%clk
0:01:55.1]} 26... Kf8 {[%clk 0:01:30.9]} 27. Bxf6 {[%clk 0:00:49]} 27... gxf6
{[%clk 0:01:29.6]} 28. Ka2 {[%clk 0:00:48.6]} 28... Ke7 {[%clk 0:01:14.1]} 29.
Qd3 {[%clk 0:00:28.9]} 29... Qg2 {[%clk 0:00:56.6]} 30. Qh7 {[%clk 0:00:20]}
30... Qxg4 {[%clk 0:00:48.5]} 31. Qxh6 {[%clk 0:00:20.3]} 31... Qe2 {[%clk
0:00:46.2]} 32. Kb3 {[%clk 0:00:15.4]} 32... Qd3+ {[%clk 0:00:44.7]} 33. Kb4
{[%clk 0:00:15.8]} 33... b6 {[%clk 0:00:43.2]} 34. Qh8 {[%clk 0:00:04.3]} 34...
Qd6+ {[%clk 0:00:42]} 35. Kb3 {[%clk 0:00:03.9]} 35... Qd3+ {[%clk 0:00:39.2]}
36. Kb4 {[%clk 0:00:03.8]} 36... Qd2+ {[%clk 0:00:39.3]} 37. Kb3 {[%clk
0:00:03.6]} 37... Qxf4 {[%clk 0:00:37.3]} 38. Qg7 {[%clk 0:00:03.5]} 38... Qe3+
{[%clk 0:00:36.1]} 39. Kb4 {[%clk 0:00:03.7]} 39... Qc5+ {[%clk 0:00:35.7]} 40.
Kb3 {[%clk 0:00:04]} 40... Qxh5 {[%clk 0:00:35.2]} 41. Qg3 {[%clk 0:00:01.8]}
41... Qc5 {[%clk 0:00:33.2]} 42. Qf4 {[%clk 0:00:01.2]} 42... b5 {[%clk
0:00:31.6]} 43. cxb5 {[%clk 0:00:01.5]} 43... Qxb5+ {[%clk 0:00:31]} 44. Ka2
{[%clk 0:00:01.9]} 44... e5 {[%clk 0:00:28.7]} 45. Qe4 {[%clk 0:00:01.3]} 45...
Ke6 {[%clk 0:00:27.4]} 46. Qa8 {[%clk 0:00:01]} 46... Qd5+ {[%clk 0:00:24.6]}
0-1

[Event "Early-Titled-Tuesday-Blitz-November-28-2023"]
[Site "Chess.com"]
[Date "2023.11.28"]
[Round "9"]
[White "kuli4ik"]
[Black "RobertJFischer71"]
[Result "1-0"]
[WhiteElo "2880"]
[BlackElo "2645"]
[TimeControl "180+1"]
[EndTime "9:52:01 PST"]
[Termination "kuli4ik won on time"]

1. Nf3 {[%clk 0:03:00.1]} 1... Nf6 {[%clk 0:02:59.8]} 2. g3 {[%clk 0:02:59.7]}
2... d5 {[%clk 0:02:56.3]} 3. Bg2 {[%clk 0:02:59.3]} 3... Bf5 {[%clk 0:02:54.4]}
4. c4 {[%clk 0:02:58.7]} 4... c6 {[%clk 0:02:51.9]} 5. Qb3 {[%clk 0:02:58]} 5...
Qb6 {[%clk 0:02:51.8]} 6. cxd5 {[%clk 0:02:57.7]} 6... cxd5 {[%clk 0:02:51.9]}
7. Qxb6 {[%clk 0:02:56]} 7... axb6 {[%clk 0:02:52.8]} 8. Nc3 {[%clk 0:02:55.8]}
8... Nc6 {[%clk 0:02:52.4]} 9. d3 {[%clk 0:02:50.6]} 9... e6 {[%clk 0:02:50.5]}
10. a3 {[%clk 0:02:48.5]} 10... Be7 {[%clk 0:02:44.8]} 11. O-O {[%clk 0:02:44]}
11... h6 {[%clk 0:02:43.1]} 12. Bf4 {[%clk 0:02:39.9]} 12... O-O {[%clk
0:02:25.3]} 13. Rfc1 {[%clk 0:02:38.8]} 13... Rfc8 {[%clk 0:02:24.7]} 14. Nb5
{[%clk 0:02:35.3]} 14... Ne8 {[%clk 0:01:51.2]} 15. Be3 {[%clk 0:02:22]} 15...
Bd8 {[%clk 0:01:36.9]} 16. Nfd4 {[%clk 0:02:17.3]} 16... Bg6 {[%clk 0:01:35.1]}
17. f4 {[%clk 0:02:13.4]} 17... Nxd4 {[%clk 0:01:25.5]} 18. Bxd4 {[%clk
0:02:11.1]} 18... f6 {[%clk 0:01:21.7]} 19. e4 {[%clk 0:02:03.8]} 19... Bf7
{[%clk 0:01:12.7]} 20. exd5 {[%clk 0:01:55.1]} 20... exd5 {[%clk 0:01:13.6]} 21.
Nc3 {[%clk 0:01:54.5]} 21... Rc6 {[%clk 0:01:05.2]} 22. Re1 {[%clk 0:01:39.8]}
22... Nc7 {[%clk 0:01:01.2]} 23. f5 {[%clk 0:01:39.1]} 23... Rd6 {[%clk
0:00:52.7]} 24. g4 {[%clk 0:01:32.2]} 24... Na6 {[%clk 0:00:50.8]} 25. b4 {[%clk
0:01:27.5]} 25... Nb8 {[%clk 0:00:48.3]} 26. Bf2 {[%clk 0:00:59.8]} 26... Nc6
{[%clk 0:00:41.1]} 27. Nb5 {[%clk 0:00:58.9]} 27... Rd7 {[%clk 0:00:39.2]} 28.
h3 {[%clk 0:00:58.9]} 28... Ne5 {[%clk 0:00:29.8]} 29. Rad1 {[%clk 0:00:54.7]}
29... Rc8 {[%clk 0:00:27.8]} 30. Bg3 {[%clk 0:00:53.8]} 30... Bc7 {[%clk
0:00:15.2]} 31. Nxc7 {[%clk 0:00:46.9]} 31... Rcxc7 {[%clk 0:00:15.6]} 32. d4
{[%clk 0:00:43.4]} 32... Nc4 {[%clk 0:00:10.6]} 33. Bxc7 {[%clk 0:00:42.4]}
33... Rxc7 {[%clk 0:00:11.5]} 34. Rc1 {[%clk 0:00:41]} 34... b5 {[%clk
0:00:11.8]} 35. Kf2 {[%clk 0:00:36]} 35... Rc8 {[%clk 0:00:12]} 36. Rc3 {[%clk
0:00:35.8]} 36... Ra8 {[%clk 0:00:11.5]} 37. Re7 {[%clk 0:00:33.8]} 37... Ra7
{[%clk 0:00:02.2]} 38. Bf1 {[%clk 0:00:26.6]} 38... Kf8 {[%clk 0:00:02.2]} 39.
Rc7 {[%clk 0:00:26]} 39... Nxa3 {[%clk 0:00:02.6]} 40. Rc8+ {[%clk 0:00:22.4]}
40... Be8 {[%clk 0:00:02.8]} 41. Re3 {[%clk 0:00:21.3]} 1-0